bitfinex/quotes_SOLUSD_20240726
["timestamp","ask_amount","ask_price","bid_price","bid_amount"]
[1721965715341,12.54,176.11,176.08,12.54]
[1721965715655,12.54,176.11,176.09,45.0]
[1721965716140,12.54,176.11,176.08,57.54]
[1721965716341,12.54,176.12,176.08,57.54]
[1721965716556,12.54,176.13,176.09,12.54]
[1721965716762,12.54,176.13,176.1,57.54]
[1721965717265,12.54,176.13,176.1,45.0]
[1721965718035,12.54,176.14,176.1,57.54]
[1721965718255,25.1,176.16,176.1,45.0]
[1721965718454,25.1,176.16,176.09,45.0]
[1721965720256,5.6763,176.17,176.09,45.0]
[1721965720766,5.6764,176.17,176.09,45.0]
[1721965721846,5.6766,176.16,176.09,45.0]
[1721965722050,5.677,176.15,176.09,45.0]
[1721965722264,30.7767,176.16,176.09,45.0]
[1721965722442,5.6769,176.15,176.09,45.0]
[1721965723855,25.1,176.16,176.09,45.0]
[1721965724679,30.7766,176.16,176.09,45.0]
[1721965725351,5.6769,176.15,176.09,45.0]
[1721965725962,25.1,176.14,176.09,45.0]
[1721965726168,30.7774,176.14,176.09,45.0]
[1721965726376,25.1,176.14,176.09,45.0]
[1721965728770,30.7773,176.14,176.09,45.0]
[1721965728970,5.6776,176.13,176.04,36.2956]
[1721965729147,30.7773,176.14,176.05,20.0]
[1721965729657,25.1,176.12,176.05,20.0]
[1721965730371,25.1,176.12,176.06,45.0]
[1721965733368,25.1,176.1,176.03,6.4645]
[1721965733853,30.7786,176.1,176.03,6.4645]
[1721965734048,25.1,176.08,176.03,6.4645]
[1721965734571,25.1,176.08,176.0,36.2956]
[1721965734967,25.1,176.06,176.0,11.1956]
[1721965735274,25.1,176.06,175.99,6.4922]
[1721965736076,25.1,176.06,176.0,45.0]
[1721965736450,15.6525,176.12,176.0,45.0]
[1721965736451,25.1,176.08,176.0,45.0]
[1721965737878,26.34879894,176.08,176.0,45.0]
[1721965738057,1.24879894,176.07,176.0,45.0]
[1721965738373,32.02819894,176.08,176.0,45.0]
[1721965738550,25.1,176.08,176.0,45.0]
[1721965739169,30.7793,176.08,176.0,45.0]
[1721965739979,25.1,176.08,176.0,45.0]
[1721965740183,12.56,176.05,176.02,12.56]
[1721965740356,12.56,176.05,176.03,45.0]
[1721965743880,12.56,176.04,175.99,6.4922]
[1721965744078,12.56,176.01,175.97,12.56]
[1721965745063,1.24879894,176.07,175.96,12.56]
[1721965745064,12.56,176.0,175.96,12.56]
[1721965745477,12.56,175.99,175.96,12.56]
[1721965745654,12.56,176.0,175.96,12.56]
[1721965746065,13.80879894,176.04,175.95,6.0158]
[1721965746066,12.56,175.99,175.95,18.5758]
[1721965746380,12.56,175.99,175.95,12.56]
[1721965747665,12.56,175.98,175.96,45.0]
[1721965747870,12.56,175.98,175.95,45.0]
[1721965748378,12.56,175.99,175.95,57.56]
[1721965750176,12.56,175.98,175.95,45.0]
[1721965750375,12.56,175.99,175.95,57.56]
[1721965751482,12.56,175.98,175.95,45.0]
[1721965751661,12.56,175.98,175.89,1.13635738]
[1721965751862,12.56,175.96,175.92,12.56]
[1721965752865,1.24879894,176.02,175.93,12.56]
[1721965753069,12.56,175.98,175.94,12.56]
[1721965753965,12.56,175.98,175.95,45.0]
[1721965755297,12.56,175.97,175.93,12.56]
[1721965755473,12.56,175.97,175.94,12.56]
[1721965756268,12.56,175.98,175.94,12.56]
[1721965757270,12.56,175.97,175.94,12.56]
[1721965758457,12.56,175.97,175.93,12.56]
[1721965758669,12.56,175.97,175.94,45.0]
[1721965760087,20.10877984,176.03,175.95,12.56]
[1721965760263,12.56,175.99,175.96,45.0]
[1721965761284,18.2421,175.99,175.96,45.0]
[1721965762883,12.56,175.98,175.96,45.0]
[1721965763092,12.56,175.98,175.95,45.0]
[1721965763594,12.56,175.98,175.95,57.56]
[1721965763767,5.6817,176.01,175.95,57.56]
[1721965763972,12.56,175.99,175.95,57.56]
[1721965764480,15.704,176.05,175.98,12.56]
[1721965764668,12.56,176.06,176.02,12.56]
[1721965765674,18.2399,176.06,176.02,12.56]
[1721965766296,5.6803,176.05,176.02,12.56]
[1721965766471,18.2403,176.05,176.02,12.56]
[1721965766670,18.2403,176.05,176.01,12.56]
[1721965766870,18.2403,176.05,176.02,45.0]
[1721965767997,12.56,176.1,176.04,12.56]
[1721965768296,15.6623,176.13,176.09,12.56]
[1721965768503,12.56,176.13,176.1,58.69552965]
[1721965768707,5.6785,176.1,176.05,45.0]
[1721965768869,5.6785,176.1,176.05,12.56]
[1721965768870,12.56,176.09,176.05,12.56]
[1721965769070,12.56,176.09,176.06,45.0]
[1721965770192,14.1917,176.16,176.07,12.56]
[1721965770402,15.6623,176.17,176.09,12.56]
[1721965770697,5.6773,176.14,176.1,45.0]
[1721965770881,12.56,176.12,176.1,45.0]
[1721965771080,12.56,176.12,176.09,45.0]
[1721965772404,12.56,176.13,176.09,57.56]
[1721965772599,12.56,176.12,176.09,57.56]
[1721965772770,5.6773,176.14,176.09,57.56]
[1721965772976,12.56,176.15,176.11,12.56]
[1721965773185,12.56,176.15,176.12,45.0]
[1721965773496,12.56,176.15,176.12,57.56]
[1721965774397,15.6623,176.17,176.12,57.56]
[1721965774706,12.56,176.16,176.12,57.56]
[1721965775212,12.56,176.15,176.12,57.56]
[1721965776194,12.56,176.14,176.12,45.0]
[1721965776389,12.56,176.14,176.11,45.0]
[1721965776817,12.56,176.14,176.11,57.56]
[1721965776990,15.6623,176.17,176.12,12.56]
[1721965777313,12.56,176.17,176.13,57.56]
[1721965777721,12.56,176.15,176.13,45.0]
[1721965777898,12.56,176.15,176.12,45.0]
[1721965778415,12.56,176.16,176.12,57.56]
[1721965778601,12.56,176.16,176.13,12.56]
[1721965778802,18.2366,176.16,176.12,45.0]
[1721965778999,18.2366,176.16,176.12,57.56]
[1721965779196,12.56,176.15,176.12,45.0]
[1721965779397,5.6763,176.18,176.12,57.56]
[1721965779717,12.56,176.16,176.12,57.56]
[1721965782817,12.56,176.17,176.13,12.56]
[1721965783016,12.56,176.17,176.14,45.0]
[1721965784006,12.56,176.16,176.14,45.0]
[1721965784210,18.2366,176.16,176.13,45.0]
[1721965784711,12.56,176.16,176.13,45.0]
[1721965786318,12.56,176.15,176.13,45.0]
[1721965786522,12.56,176.15,176.12,45.0]
[1721965787903,12.56,176.18,176.14,12.56]
[1721965788104,12.56,176.19,176.15,57.56]
[1721965788310,13.3643631,176.2,176.16,57.56]
[1721965788630,13.3643631,176.2,176.16,12.56]
[1721965788807,13.3643631,176.2,176.17,45.0]
[1721965789015,0.8043631,176.2,176.17,57.56]
[1721965789215,0.8043631,176.2,176.18,12.56]
[1721965789532,13.3643631,176.2,176.19,45.0]
[1721965789731,13.3643631,176.2,176.17,45.0]
[1721965791522,0.8043631,176.2,176.17,57.56]
[1721965794323,0.8043631,176.2,176.19,12.56]
[1721965794533,0.8043631,176.2,176.19,57.56]
[1721965796334,0.8043631,176.2,176.19,45.0]
[1721965796832,0.8043631,176.2,176.18,45.0]
[1721965798033,0.8043631,176.2,176.18,57.56]
[1721965800635,0.8043631,176.2,176.18,45.0]
[1721965800822,0.8043631,176.2,176.18,57.56]
[1721965804321,0.8043631,176.2,176.19,12.56]
[1721965804639,0.8043631,176.2,176.19,58.69476564]
[1721965805823,0.8043631,176.2,176.19,77.56]
[1721965806031,0.8043631,176.2,176.19,84.7557646]
[1721965807016,0.8043631,176.2,176.19,97.3157646]
[1721965807221,0.8043631,176.2,176.19,84.7557646]
[1721965810130,0.8043631,176.2,176.19,77.56]
[1721965810438,0.8043631,176.2,176.19,12.56]
[1721965811846,0.8043631,176.2,176.19,77.56]
[1721965812929,0.8043631,176.2,176.19,65.0]
[1721965813147,0.8043631,176.2,176.19,77.56]
[1721965816653,0.8043631,176.2,176.19,78.69449405]
[1721965818449,0.8043631,176.2,176.19,78.69443799]
[1721965819733,0.8043631,176.2,176.19,77.56]
[1721965820049,0.8043631,176.2,176.19,78.69444276]
[1721965820429,0.8043631,176.2,176.19,128.93444276]
[1721965821254,0.8043631,176.2,176.19,78.69444276]
[1721965821838,0.8043631,176.2,176.19,91.25444276]
[1721965822154,15.7639,176.3,176.19,111.25444276]
[1721965822357,15.7639,176.3,176.27,12.56]
[1721965822651,15.7639,176.3,176.28,45.0]
[1721965822837,15.7639,176.3,176.2,65.0]
[1721965822838,12.56,176.29,176.24,12.56]
[1721965823039,12.56,176.27,176.08,20.0]
[1721965823248,12.56,176.23,176.19,12.56]
[1721965824035,12.56,176.21,176.18,12.56]
[1721965824242,6.37,176.26,176.18,12.56]
[1721965824449,12.56,176.21,176.18,12.56]
[1721965824845,6.37,176.26,176.18,12.56]
[1721965825162,12.56,176.23,176.19,12.56]
[1721965825543,12.56,176.27,176.22,12.56]
[1721965825860,12.56,176.27,176.23,57.56]
[1721965826055,12.56,176.28,176.24,12.56]
[1721965826354,12.56,176.28,176.25,45.0]
[1721965826656,12.56,176.29,176.25,57.56]
[1721965827458,12.56,176.28,176.25,45.0]
[1721965827639,15.7639,176.3,176.25,45.0]
[1721965827955,12.56,176.28,176.25,45.0]
[1721965828260,15.7639,176.3,176.25,57.56]
[1721965828460,12.56,176.28,176.25,57.56]
[1721965828647,12.56,176.29,176.25,57.56]
[1721965828853,28.3239,176.3,176.26,12.56]
[1721965829055,28.3239,176.3,176.27,45.0]
[1721965829658,15.7639,176.3,176.28,12.56]
[1721965829992,12.56,176.31,176.28,12.56]
[1721965830257,12.56,176.32,176.29,45.0]
[1721965830448,27.6227,176.34,176.3,12.56]
[1721965830760,7.2200631,176.38,176.29,45.0]
[1721965830761,22.2827631,176.38,176.31,12.56]
[1721965830965,12.56,176.36,176.32,12.56]
[1721965831146,12.56,176.36,176.33,45.0]
[1721965832041,22.2827631,176.38,176.33,57.56]
[1721965832042,12.56,176.37,176.33,57.56]
[1721965833761,28.4270631,176.38,176.34,12.56]
[1721965834066,28.4270631,176.38,176.35,57.56]
[1721965834366,28.4270631,176.38,176.35,12.56]
[1721965834942,0.8043631,176.38,176.36,12.56]
[1721965835150,0.8043631,176.38,176.37,45.0]
[1721965836141,13.3643631,176.38,176.29,12.32932592]
[1721965836342,12.56,176.35,176.32,12.56]
[1721965836542,12.56,176.35,176.33,45.0]
[1721965836778,12.56,176.37,176.33,57.56]
[1721965837270,13.3643631,176.38,176.34,12.56]
[1721965837468,13.3643631,176.38,176.35,45.0]
[1721965838868,0.8043631,176.38,176.35,45.0]
[1721965839069,0.8043631,176.38,176.35,57.56]
[1721965839264,0.8043631,176.38,176.36,12.56]
[1721965839470,0.8043631,176.38,176.37,45.0]
[1721965841062,0.8043631,176.38,176.36,45.0]
[1721965841455,13.3643631,176.38,176.36,45.0]
[1721965841654,13.3643631,176.38,176.35,45.0]
[1721965841957,0.8043631,176.38,176.35,57.56]
[1721965842151,13.3643631,176.38,176.35,45.0]
[1721965842382,0.8043631,176.38,176.35,57.56]
[1721965842667,0.8043631,176.38,176.37,12.56]
[1721965842885,0.8043631,176.38,176.37,57.56]
[1721965843063,0.8043631,176.38,176.37,77.56]
[1721965844271,0.8043631,176.38,176.37,90.01]
[1721965847567,0.8043631,176.38,176.37,65.0]
[1721965848164,0.8043631,176.38,176.37,90.01]
[1721965848470,0.8043631,176.38,176.37,20.0]
[1721965848659,0.8043631,176.38,176.36,21.13364155]
[1721965849170,0.8043631,176.38,176.36,20.0]
[1721965849659,0.8043631,176.38,176.37,45.0]
[1721965849865,0.8043631,176.38,176.37,65.0]
[1721965851178,0.8043631,176.38,176.37,90.01]
[1721965851473,0.8043631,176.38,176.37,70.01]
[1721965851881,0.8043631,176.38,176.37,65.0]
[1721965852680,0.8043631,176.38,176.37,66.13346075]
[1721965853575,0.8043631,176.38,176.37,65.0]
[1721965859667,0.8043631,176.38,176.37,45.0]
[1721965860374,0.8043631,176.38,176.35,26.14356503]
[1721965860375,0.8043631,176.38,176.36,45.0]
[1721965864973,13.3143631,176.38,176.36,45.0]
[1721965865172,13.3143631,176.38,176.29,1.13381616]
[1721965865173,12.51,176.37,176.29,1.13381616]
[1721965865477,12.51,176.36,176.33,12.51]
[1721965865696,12.51,176.37,176.34,45.0]
[1721965866076,12.51,176.37,176.34,57.51]
[1721965866376,12.51,176.37,176.34,45.0]
[1721965866577,12.51,176.36,176.34,45.0]
[1721965867093,12.51,176.36,176.33,57.51]
[1721965867587,12.51,176.36,176.33,45.0]
[1721965867796,12.51,176.34,176.28,1.13393684]
[1721965868008,12.51,176.31,176.25,1.13412748]
[1721965868214,12.51,176.31,176.24,6.3564]
[1721965868215,12.51,176.32,176.28,12.51]
[1721965869787,12.51,176.32,176.29,45.0]
[1721965873274,12.51,176.31,176.29,45.0]
[1721965874273,12.51,176.32,176.29,45.0]
[1721965877672,5.67,176.37,176.29,45.0]
[1721965877895,12.51,176.33,176.29,57.51]
[1721965878887,12.51,176.32,176.29,45.0]
[1721965881602,12.51,176.32,176.29,57.51]
[1721965882701,12.51,176.32,176.29,45.0]
[1721965883602,12.51,176.31,176.29,45.0]
[1721965885177,5.2043631,176.38,176.3,12.51]
[1721965885382,5.2043631,176.38,176.36,12.51]
[1721965885577,12.51,176.37,176.31,45.0]
[1721965885804,5.2043631,176.38,176.31,57.51]
[1721965885805,12.51,176.35,176.31,57.51]
[1721965886183,12.51,176.34,176.31,45.0]
[1721965886390,12.51,176.34,176.3,12.51]
[1721965886589,5.2043631,176.38,176.31,57.51]
[1721965886793,5.2043631,176.38,176.33,12.51]
[1721965886995,12.51,176.37,176.34,45.0]
[1721965887190,12.51,176.37,176.34,57.51]
[1721965887708,17.7143631,176.38,176.34,57.51]
[1721965888508,5.2043631,176.38,176.35,12.51]
[1721965888715,5.2043631,176.38,176.36,45.0]
[1721965889698,5.2043631,176.38,176.36,57.51]
[1721965891295,5.2043631,176.38,176.36,45.0]
[1721965891608,5.2043631,176.38,176.36,57.51]
[1721965891811,5.2043631,176.38,176.36,45.0]
[1721965893027,5.2043631,176.38,176.36,57.51]
[1721965893622,5.2043631,176.38,176.37,12.51]
[1721965893917,5.2043631,176.38,176.37,57.51]
[1721965894394,306.64,176.58,176.38,20.0]
[1721965894395,12.51,176.48,176.38,20.0]
[1721965894598,6.5147,176.5,176.38,20.0]
[1721965894599,12.51,176.5,176.44,12.51]
[1721965894807,5.6644,176.54,176.44,57.51]
[1721965894992,23.2199631,176.56,176.44,57.51]
[1721965895191,12.51,176.5,176.44,57.51]
[1721965896501,12.51,176.49,176.44,57.51]
[1721965898407,12.51,176.46,176.44,45.0]
[1721965898610,12.51,176.46,176.43,12.51]
[1721965899021,12.51,176.48,176.44,12.51]
[1721965899329,12.51,176.5,176.44,12.51]
[1721965899905,15.7286,176.52,176.44,57.51]
[1721965900218,12.51,176.5,176.44,57.51]
[1721965900403,12.51,176.5,176.44,45.0]
[1721965900717,12.51,176.48,176.44,45.0]
[1721965901319,24.88752947,176.45,176.42,12.51]
[1721965901617,24.88752947,176.45,176.38,11.7179754]
[1721965901618,12.51,176.44,176.4,12.51]
[1721965901797,12.51,176.43,176.39,12.51]
[1721965902613,12.51,176.43,176.4,45.0]
[1721965902816,12.37752947,176.45,176.4,57.51]
[1721965903003,12.51,176.44,176.41,12.51]
[1721965904022,12.51,176.44,176.42,45.0]
[1721965904217,12.51,176.44,176.4,57.51]
[1721965904518,24.88752947,176.45,176.41,12.51]
[1721965904711,24.88752947,176.45,176.42,57.51]
[1721965904919,24.88752947,176.45,176.43,45.0]
[1721965905723,12.37752947,176.45,176.43,45.0]
[1721965905926,11.87752947,176.45,176.43,45.0]
[1721965906802,24.38752947,176.45,176.43,45.0]
[1721965908024,11.87752947,176.45,176.43,45.0]
[1721965908213,24.38752947,176.45,176.43,45.0]
[1721965909113,11.87752947,176.45,176.43,45.0]
[1721965911106,24.38752947,176.45,176.43,45.0]
[1721965911306,11.87752947,176.45,176.43,45.0]
[1721965911523,24.38752947,176.45,176.43,45.0]
[1721965913141,24.38752947,176.45,176.42,45.0]
[1721965913428,12.51,176.43,176.42,45.0]
[1721965913614,12.51,176.43,176.38,5.2597754]
[1721965913815,12.51,176.39,176.35,12.51]
[1721965914126,12.51,176.38,176.34,12.51]
[1721965914530,27.23982947,176.45,176.36,12.51]
[1721965914736,12.51,176.4,176.36,12.51]
[1721965916514,12.51,176.39,176.35,12.51]
[1721965916714,12.51,176.4,176.36,57.51]
[1721965916914,12.51,176.4,176.36,12.51]
[1721965917133,12.51,176.39,176.35,12.51]
[1721965917737,12.51,176.4,176.36,12.51]
[1721965917926,12.51,176.41,176.37,12.51]
[1721965918231,27.23982947,176.45,176.3,6.4624]
[1721965918232,12.51,176.38,176.3,1.13370376]
[1721965918415,12.51,176.37,176.33,12.51]
[1721965919538,12.51,176.37,176.34,45.0]
[1721965920060,12.51,176.37,176.28,13.99679702]
[1721965920061,12.51,176.35,176.31,12.51]
[1721965920225,12.51,176.35,176.32,66.13407945]
[1721965920414,37.2958,176.33,176.28,0.98742494]
[1721965920615,6.6045,176.33,176.24,12.51]
[1721965920815,12.51,176.27,176.24,12.51]
[1721965921216,12.51,176.27,176.23,12.51]
[1721965922114,16.0763,176.34,176.26,12.51]
[1721965922329,15.8403,176.39,176.31,25.04]
[1721965922536,15.8403,176.39,176.33,25.04]
[1721965922726,15.8403,176.39,176.33,26.05851674]
[1721965923045,46.965,176.43,176.35,25.04]
[1721965923433,46.965,176.43,176.36,45.0]
[1721965924343,25.04,176.41,176.36,45.0]
[1721965926155,25.04,176.41,176.31,26.05821704]
[1721965926341,25.04,176.41,176.32,20.0]
[1721965927335,25.04,176.41,176.33,45.0]
[1721965927530,27.593,176.43,176.34,20.0]
[1721965927531,25.04,176.39,176.34,20.0]
[1721965927733,25.04,176.41,176.35,45.0]
[1721965932274,25.04,176.39,176.31,38.38788163]
[1721965932442,25.04,176.39,176.27,1.01874805]
[1721965932443,25.04,176.35,176.27,1.01874805]
[1721965932765,25.04,176.33,176.26,6.3339]
[1721965932938,25.04,176.33,176.25,25.04]
[1721965933344,25.04,176.33,176.23,26.05941631]
[1721965933563,25.04,176.33,176.24,1.01979551]
[1721965933765,25.04,176.31,176.24,1.01979551]
[1721965933938,25.04,176.31,176.23,26.0598061]
[1721965934256,25.04,176.31,176.23,26.06020317]
[1721965934660,16.4517,176.36,176.24,1.02020382]
[1721965934661,25.04,176.29,176.24,1.02020382]
[1721965934872,25.04,176.29,176.21,1.02039684]
[1721965935340,25.04,176.29,176.2,8.88937644]
[1721965935341,25.04,176.27,176.2,8.88937644]
[1721965935544,25.04,176.27,176.2,9.91017046]
[1721965936966,25.04,176.27,176.21,65.0]
[1721965937748,25.04,176.27,176.2,8.88937644]
[1721965938643,25.04,176.27,176.21,1.020867]
[1721965938848,25.04,176.27,176.2,8.88937644]
[1721965939044,25.04,176.25,176.17,38.48210145]
[1721965939255,25.04,176.23,176.18,8.89297692]
[1721965942070,25.04,176.25,176.19,45.0]
[1721965946053,25.04,176.23,176.19,45.0]
[1721965948973,25.04,176.27,176.19,46.02168347]
[1721965950573,25.04,176.29,176.2,51.5451]
[1721965950874,25.04,176.29,176.21,46.02056632]
[1721965951582,25.04,176.33,176.24,25.04]
[1721965951875,25.04,176.33,176.25,66.01982432]
[1721965952251,25.04,176.35,176.26,25.04]
[1721965952454,25.04,176.35,176.27,46.01946835]
[1721965953369,25.04,176.35,176.28,20.0]
[1721965953568,25.04,176.35,176.29,46.01947347]
[1721965953781,25.04,176.35,176.3,1.01947152]
[1721965953980,25.04,176.35,176.3,1.01929621]
[1721965954484,25.04,176.37,176.3,26.05929621]
[1721965954652,25.04,176.37,176.31,20.0]
[1721965954856,25.04,176.37,176.32,45.0]
[1721965956079,25.04,176.39,176.32,45.0]
[1721965956384,25.04,176.39,176.33,1.01859535]
[1721965956985,25.04,176.41,176.33,21.01859535]
[1721965957176,25.04,176.41,176.34,45.0]
[1721965957367,25.04,176.41,176.35,1.01825924]
[1721965957568,25.04,176.41,176.36,1.01825924]
[1721965958070,25.04,176.37,176.34,45.0]
[1721965959377,25.04,176.37,176.28,31.7046]
[1721965959585,25.04,176.37,176.29,21.01911716]
[1721965959969,25.04,176.37,176.3,1.01911909]
[1721965960376,25.04,176.37,176.28,32.72372092]
[1721965960591,25.04,176.35,176.28,7.68372092]
[1721965960763,25.04,176.35,176.29,45.0]
[1721965961765,25.04,176.33,176.29,45.0]
[1721965963581,25.04,176.33,176.27,1.01967991]
[1721965963783,25.04,176.33,176.25,21.01980558]
[1721965964890,30.7092,176.4,176.26,70.04]
[1721965964891,25.04,176.35,176.26,70.04]
[1721965965074,25.04,176.35,176.27,21.01939242]
[1721965965278,25.04,176.35,176.28,70.04]
[1721965968474,25.04,176.35,176.28,45.0]
[1721965968688,25.04,176.33,176.27,45.0]
[1721965968894,25.04,176.33,176.24,70.04]
[1721965969099,25.04,176.33,176.25,20.0]
[1721965969306,25.04,176.33,176.26,45.0]
[1721965969604,25.04,176.31,176.27,20.0]
[1721965969790,25.04,176.31,176.28,45.0]
[1721965970800,25.04,176.33,176.28,45.0]
[1721965973089,25.04,176.35,176.28,46.01969442]
[1721965973304,25.04,176.35,176.29,20.0]
[1721965973598,25.04,176.35,176.3,45.0]
[1721965978790,16.4143,176.44,176.34,25.04]
[1721965979099,41.4543,176.44,176.35,46.01782701]
[1721965979407,41.4543,176.44,176.36,1.01782916]
[1721965979706,25.04,176.42,176.35,46.01782916]
[1721965979915,25.04,176.42,176.35,45.0]
[1721965980931,16.4143,176.44,176.35,45.0]
[1721965980932,25.04,176.4,176.35,45.0]
[1721965982526,25.04,176.42,176.35,45.0]
[1721965984023,25.04,176.39,176.32,1.01820961]
[1721965984233,25.04,176.39,176.32,20.0]
[1721965984394,25.04,176.39,176.31,7.57641264]
[1721965985330,25.04,176.39,176.32,45.0]
[1721965986999,25.04,176.39,176.32,46.01866443]
[1721965989305,25.04,176.39,176.32,45.0]
[1721965989724,25.04,176.43,176.34,25.04]
[1721965989912,25.04,176.43,176.35,46.01793408]
[1721965990108,25.04,176.43,176.36,1.01788694]
[1721965992332,25.04,176.43,176.35,45.0]
[1721965992535,16.4143,176.44,176.31,6.5577]
[1721965992536,25.04,176.38,176.31,7.57584164]
[1721965992734,25.04,176.38,176.32,20.0]
[1721965994321,25.04,176.38,176.33,45.0]
[1721965996333,25.04,176.38,176.33,46.018776]
[1721965997241,25.04,176.38,176.33,45.0]
[1721965997411,25.04,176.35,176.27,6.5916]
[1721965997611,15.05,176.37,176.26,2.00669741]
[1721965997612,25.04,176.33,176.26,2.00669741]
[1721965997822,25.04,176.31,176.26,0.98749566]
[1721965998959,25.04,176.29,176.23,8.88753217]
[1721965999454,25.04,176.27,176.23,8.88753217]
[1721965999827,25.04,176.27,176.2,0.98801982]
[1721966000034,25.04,176.27,176.2,9.88006197]
[1721966000643,25.04,176.25,176.2,9.88006197]
[1721966002254,25.04,176.25,176.21,20.0]
[1721966002689,25.04,176.25,176.22,45.0]
[1721966003049,25.04,176.25,176.21,45.0]
[1721966004059,25.04,176.27,176.21,45.0]
[1721966005159,25.04,176.27,176.22,1.02092723]
[1721966005669,25.04,176.27,176.21,45.0]
[1721966009561,25.04,176.27,176.22,1.02093322]
[1721966009746,25.04,176.27,176.21,45.0]
[1721966011446,25.04,176.27,176.22,1.02093626]
[1721966011642,25.04,176.27,176.2,8.89204215]
[1721966011643,25.04,176.25,176.2,8.89204215]
[1721966011847,25.04,176.23,176.17,0.98813794]
[1721966012039,25.04,176.23,176.18,8.89358747]
[1721966012874,25.04,176.23,176.19,45.0]
[1721966014864,25.04,176.25,176.19,45.0]
[1721966015746,25.04,176.23,176.18,8.89358747]
[1721966016160,25.04,176.21,176.18,8.89358747]
[1721966016370,25.04,176.19,176.18,8.89358747]
[1721966017180,25.04,176.19,176.11,26.0285691]
[1721966017485,1.41888402,176.23,176.11,0.9885691]
[1721966017486,25.04,176.17,176.11,0.9885691]
[1721966018378,25.04,176.17,176.09,38.39249507]
[1721966019676,25.04,176.17,176.1,20.0]
[1721966020056,25.04,176.15,176.08,16.24338461]
[1721966020244,25.04,176.15,176.08,8.89680987]
[1721966020448,25.04,176.15,176.06,1.02354909]
[1721966020677,25.04,176.13,176.06,1.02354909]
[1721966021052,25.04,176.15,176.06,1.02354909]
[1721966021684,7.95043925,176.17,176.05,39.77851979]
[1721966021864,25.04,176.13,176.05,25.04]
[1721966022189,25.04,176.11,176.05,8.8995625]
[1721966023277,25.04,176.11,176.06,45.0]
[1721966023785,25.04,176.13,176.06,45.0]
[1721966024586,25.04,176.13,176.07,1.02388983]
[1721966025084,25.04,176.13,176.06,45.0]
[1721966025288,25.04,176.13,176.06,46.02381343]
[1721966026384,25.04,176.13,176.06,45.0]
[1721966026594,25.04,176.11,176.05,8.8995625]
[1721966026765,25.04,176.07,176.02,5.83750772]
[1721966026965,25.04,176.07,176.0,6.202]
[1721966027160,25.04,176.07,176.0,1.02483926]
[1721966027382,15.4255,176.11,175.98,6.85762691]
[1721966027383,25.04,176.05,175.98,6.85762691]